bitfinex/quotes_SOLUSD_20240612
["timestamp","ask_amount","ask_price","bid_price","bid_amount"]
[1718191876297,10.6321,152.76,152.75,489.3676]
[1718191878098,8.21,152.76,152.75,489.3676]
[1718191880483,10.6321,152.76,152.75,489.3676]
[1718191880899,8.21,152.76,152.75,489.3676]
[1718191881102,10.6321,152.76,152.75,489.3676]
[1718191882932,8.21,152.76,152.75,489.3676]
[1718191883689,8.21,152.76,152.75,491.7898]
[1718191883884,8.21,152.76,152.75,489.3676]
[1718191884089,8.21,152.76,152.75,491.7898]
[1718191884303,8.21,152.76,152.75,489.3676]
[1718191888910,2.4219,152.77,152.75,489.3676]
[1718191889111,8.21,152.76,152.75,489.3676]
[1718191891520,2.4219,152.77,152.75,489.3676]
[1718191891704,8.21,152.76,152.75,489.3676]
[1718191892111,10.6321,152.76,152.75,489.3676]
[1718191893602,8.21,152.76,152.75,489.3676]
[1718191894522,10.6321,152.76,152.75,489.3676]
[1718191895622,8.21,152.76,152.75,489.3676]
[1718191896224,15.4763,152.76,152.75,489.3676]
[1718191897927,10.6321,152.76,152.75,489.3676]
[1718191898434,15.8163,152.76,152.75,489.3676]
[1718191898601,15.9863,152.76,152.75,489.3676]
[1718191902334,8.72,152.76,152.75,489.3676]
[1718191902512,11.1421,152.76,152.75,489.3676]
[1718191903618,10.6321,152.76,152.75,489.3676]
[1718191905726,10.6321,152.76,152.75,489.3676]
[1718191911910,8.21,152.76,152.75,489.3676]
[1718191912439,10.6321,152.76,152.75,489.3676]
[1718191913434,2.4216,152.79,152.76,2.422]
[1718191913639,8.21,152.77,152.75,491.7897]
[1718191915232,10.6321,152.76,152.75,489.3676]
[1718191921539,2.4218,152.78,152.75,491.7898]
[1718191921737,8.21,152.76,152.75,491.7898]
[1718191922446,8.21,152.76,152.75,489.3676]
[1718191922926,8.21,152.76,152.75,491.7898]
[1718191923935,8.21,152.76,152.75,489.3676]
[1718191928545,2.4218,152.78,152.75,491.7898]
[1718191928757,8.21,152.76,152.75,491.7898]
[1718191929126,8.21,152.76,152.75,489.3676]
[1718191929851,8.21,152.76,152.75,491.7898]
[1718191931050,8.21,152.76,152.75,489.3676]
[1718191932956,0.17,152.81,152.75,494.2121]
[1718191933165,2.4213,152.81,152.78,2.4216]
[1718191933461,8.21,152.8,152.78,2.4217]
[1718191933661,215.5141,152.86,152.77,1.308967]
[1718191933662,20.5727,152.85,152.79,2.4215]
[1718191933870,8.21,152.82,152.79,2.4215]
[1718191934657,8.21,152.82,152.77,12.1095]
[1718191934658,10.6311,152.82,152.78,2.4216]
[1718191934966,8.21,152.8,152.78,2.4216]
[1718191935154,2.4213,152.81,152.78,2.4216]
[1718191935361,12.1041,152.84,152.78,2.4216]
[1718191935362,8.21,152.8,152.78,2.4216]
[1718191938738,8.21,152.8,152.79,2.4216]
[1718191940345,2.421,152.83,152.8,2.4214]
[1718191940542,8.21,152.81,152.8,2.4214]
[1718191942466,8.21,152.81,152.79,2.4215]
[1718191944571,2.4211,152.82,152.79,2.4215]
[1718191944744,0.17,152.85,152.78,7.2652]
[1718191944950,2.4205,152.86,152.83,2.4209]
[1718191945151,6.587,152.89,152.84,2.4208]
[1718191945352,8.21,152.85,152.84,2.4208]
[1718191945666,6.587,152.89,152.84,2.4207]
[1718191945870,8.21,152.85,152.84,2.4207]
[1718191946372,8.21,152.85,152.83,2.4208]
[1718191946865,8.21,152.84,152.83,2.4208]
[1718191947261,8.21,152.84,152.8,15.4047]
[1718191947453,8.21,152.84,152.81,2.4212]
[1718191947945,8.21,152.83,152.82,2.4211]
[1718191948550,2.4204,152.87,152.81,21.7914]
[1718191948751,8.21,152.85,152.83,2.4208]
[1718191949568,8.21,152.85,152.84,2.4208]
[1718191949774,8.21,152.86,152.84,2.4208]
[1718191950186,2.4199,152.9,152.86,2.4204]
[1718191950485,2.4197,152.91,152.88,2.4201]
[1718191950684,2.4197,152.91,152.87,2.4202]
[1718191950850,8.21,152.9,152.87,2.4202]
[1718191951052,8.21,152.9,152.88,2.4201]
[1718191951301,8.21,152.9,152.87,2.4202]
[1718191951594,2.4198,152.9,152.87,2.4202]
[1718191951772,10.6298,152.9,152.87,2.4202]
[1718191951957,2.4198,152.9,152.87,2.4202]
[1718191952157,10.6298,152.9,152.87,2.4202]
[1718191952352,8.21,152.9,152.87,2.4202]
[1718191953375,10.6298,152.9,152.87,2.4202]
[1718191953764,2.4198,152.9,152.87,2.4202]
[1718191953974,8.21,152.89,152.87,2.4202]
[1718191954173,40.28515832,152.94,152.88,2.4201]
[1718191954476,2.4196,152.92,152.88,2.4201]
[1718191954683,8.21,152.91,152.88,2.4201]
[1718191955192,2.4196,152.92,152.88,2.4201]
[1718191955407,2.4195,152.93,152.89,2.42]
[1718191955582,2.4195,152.93,152.89,2.4199]
[1718191955893,2.4193,152.94,152.9,2.4198]
[1718191956077,2.4193,152.94,152.91,2.4196]
[1718191956289,2.4191,152.95,152.91,2.4196]
[1718191956604,8.21,152.93,152.91,2.4196]
[1718191956772,2.4192,152.94,152.91,2.4196]
[1718191957171,2.4191,152.95,152.91,2.4196]
[1718191957399,7.37542507,152.97,152.89,4.84]
[1718191957400,8.21,152.93,152.9,2.4197]
[1718191957575,8.21,152.93,152.89,4.84]
[1718191957576,8.21,152.92,152.89,2.4199]
[1718191958070,10.6295,152.92,152.88,2.4201]
[1718191958276,10.6297,152.91,152.87,2.4202]
[1718191958581,8.21,152.9,152.87,2.4202]
[1718191959288,8.21,152.88,152.85,18.6606]
[1718191959491,8.21,152.88,152.86,2.4204]
[1718191959879,8.21,152.88,152.87,2.4203]
[1718191960692,8.21,152.88,152.86,2.4204]
[1718191961879,2.4199,152.9,152.87,2.4203]
[1718191962090,8.21,152.89,152.87,2.4203]
[1718191962269,8.21,152.89,152.88,2.4201]
[1718191962590,2.4193,152.94,152.9,2.4197]
[1718191962801,8.21,152.92,152.9,2.4197]
[1718191962995,8.21,152.91,152.9,2.4197]
[1718191963699,2.4191,152.95,152.91,2.4196]
[1718191963905,8.21,152.93,152.91,2.4196]
[1718191964882,8.21,152.92,152.9,2.4197]
[1718191965378,8.21,152.92,152.89,2.4199]
[1718191965771,2.4194,152.93,152.89,2.4199]
[1718191966001,2.4194,152.93,152.9,2.4198]
[1718191966297,2.4193,152.94,152.9,2.4198]
[1718191970318,0.17,152.95,152.86,12.1018]
[1718191970600,8.21,152.9,152.88,2.4201]
[1718191971584,8.21,152.9,152.89,2.42]
[1718191971979,8.21,152.91,152.9,2.4198]
[1718191972180,8.21,152.92,152.91,2.4196]
[1718191972598,0.11912507,152.97,152.92,2.4195]
[1718191972803,8.21,152.93,152.92,2.4195]
[1718191972983,8.21,152.93,152.91,2.4196]
[1718191973277,2.4192,152.95,152.91,2.4196]
[1718191973475,8.21,152.93,152.91,2.4196]
[1718191976581,2.4192,152.94,152.91,2.4196]
[1718191976785,8.21,152.93,152.91,2.4196]
[1718191977211,2.4191,152.95,152.92,2.4195]
[1718191977509,8.21,152.94,152.92,2.4195]
[1718191978502,8.21,152.94,152.93,2.4194]
[1718191978803,2.4189,152.96,152.93,2.4194]
[1718191979016,8.21,152.96,152.93,2.4194]
[1718191979308,10.6289,152.96,152.93,2.4194]
[1718191979684,8.21,152.96,152.93,2.4194]
[1718191980208,0.11912507,152.97,152.94,2.4191]
[1718191980384,8.32912507,152.97,152.94,2.4191]
[1718191980587,8.21,152.96,152.94,2.4191]
[1718191980805,8.21,152.96,152.93,2.4193]
[1718191981511,0.11912507,152.97,152.94,2.4192]
[1718191981693,8.32912507,152.97,152.94,2.4192]
[1718191982090,0.11912507,152.97,152.92,8.21]
[1718191982418,0.11912507,152.97,152.96,2.4189]
[1718191984799,0.11912507,152.97,152.95,2.419]
[1718191985000,8.32912507,152.97,152.95,2.419]
[1718191985610,2.4193,152.94,152.9,15.2665]
[1718191985906,8.21,152.94,152.91,2.4196]
[1718191986110,8.21,152.94,152.92,2.4195]
[1718191986418,8.21,152.94,152.91,2.4196]
[1718191986715,8.21,152.94,152.92,2.4195]
[1718191988204,2.4189,152.96,152.9,22.526]
[1718191988410,8.21,152.94,152.93,2.4193]
[1718191988613,10.6293,152.94,152.91,2.4196]
[1718191988799,8.21,152.93,152.92,2.4195]
[1718191989713,8.21,152.93,152.91,2.4196]
[1718191989918,8.21,152.93,152.9,20.1062]
[1718191990416,8.21,152.91,152.9,2.4198]
[1718191991719,8.21,152.91,152.89,2.4199]
[1718191991919,8.21,152.9,152.89,2.4199]
[1718191992417,8.21,152.9,152.86,20.2622]
[1718191992610,8.21,152.89,152.88,2.4201]
[1718191992807,8.21,152.89,152.88,7.2604]
[1718191993005,2.4195,152.93,152.89,2.4199]
[1718191993208,8.21,152.9,152.89,2.4199]
[1718191993403,8.21,152.9,152.84,14.6848]
[1718191993404,20.3095,152.9,152.84,2.4207]
[1718191993614,8.21,152.85,152.84,2.4208]
[1718191993929,8.21,152.86,152.85,2.4205]
[1718191994723,2.4199,152.9,152.84,4.8415]
[1718191994905,8.21,152.88,152.84,4.8415]
[1718191995218,8.21,152.86,152.82,14.5263]
[1718191995421,8.21,152.86,152.82,21.7897]
[1718191995811,8.21,152.86,152.85,2.4206]
[1718191997114,26.3681,152.92,152.86,2.4204]
[1718191997320,8.21,152.87,152.86,2.4204]
[1718191998221,15.3193,152.92,152.88,2.4201]
[1718191998431,8.21,152.89,152.87,2.4202]
[1718191999302,8.21,152.89,152.88,2.4201]
[1718192000520,2.4196,152.92,152.89,2.4199]
[1718192000722,2.4194,152.93,152.87,4.8406]
[1718192001023,8.21,152.9,152.89,2.4199]
[1718192002402,8.21,152.9,152.84,30.8054]
[1718192002403,20.3093,152.9,152.84,18.8101]
[1718192002604,8.21,152.86,152.83,2.4208]
[1718192002805,8.21,152.86,152.84,2.4207]
[1718192003019,8.21,152.85,152.84,2.4207]
[1718192003224,2.4202,152.88,152.84,2.4207]
[1718192003409,8.21,152.86,152.85,2.4206]
[1718192003728,8.21,152.87,152.85,2.4205]
[1718192003901,2.4201,152.89,152.86,2.4205]
[1718192004102,8.21,152.87,152.86,2.4205]
[1718192005109,8.21,152.87,152.85,2.4205]
[1718192006347,8.21,152.87,152.86,2.4205]
[1718192006831,8.21,152.87,152.85,2.4205]
[1718192007025,8.21,152.86,152.85,2.4205]
[1718192012635,2.4199,152.9,152.87,2.4202]
[1718192012820,8.21,152.88,152.86,2.4204]
[1718192013021,8.21,152.87,152.86,2.4204]
[1718192013338,2.4207,152.85,152.82,2.4211]
[1718192013538,2.4207,152.85,152.79,7.2647]
[1718192013539,8.21,152.83,152.81,2.4212]
[1718192013722,8.21,152.82,152.81,2.4212]
[1718192014133,8.21,152.83,152.82,2.4211]
[1718192014638,8.21,152.83,152.81,2.4212]
[1718192014840,8.21,152.82,152.81,2.4212]
[1718192015019,15.9016,152.88,152.84,2.4207]
[1718192015222,8.21,152.85,152.84,2.4207]
[1718192015431,8.21,152.86,152.85,2.4205]
[1718192015628,2.4201,152.89,152.85,2.4205]
[1718192015935,8.21,152.87,152.86,2.4204]
[1718192016321,8.21,152.87,152.82,4.8421]
[1718192016537,8.21,152.85,152.83,2.4208]
[1718192016920,8.21,152.85,152.84,2.4208]
[1718192017332,2.4204,152.87,152.84,2.4208]
[1718192017516,8.21,152.85,152.84,2.4208]
[1718192018531,8.21,152.86,152.85,2.4206]
[1718192019313,32.0777,152.92,152.86,2.4203]
[1718192019637,8.21,152.87,152.86,2.4203]
[1718192022041,8.21,152.87,152.85,2.4205]
[1718192024445,10.6303,152.87,152.84,2.4207]
[1718192025327,8.21,152.87,152.84,2.4207]
[1718192025526,8.21,152.87,152.85,2.4206]
[1718192026348,8.21,152.87,152.84,2.4207]
[1718192026643,10.0192,152.91,152.87,2.4202]
[1718192026644,2.4198,152.91,152.87,2.4202]
[1718192026828,8.21,152.9,152.87,2.4202]
[1718192027032,8.21,152.9,152.83,0.17]
[1718192027033,8.21,152.89,152.86,2.4204]
[1718192027230,8.21,152.89,152.85,2.4205]
[1718192027231,10.63,152.89,152.85,2.4205]
[1718192027431,8.21,152.88,152.85,2.4205]
[1718192027626,8.21,152.89,152.84,4.8415]
[1718192027839,8.21,152.89,152.86,2.4204]
[1718192028351,8.21,152.89,152.87,2.4202]
[1718192028539,4.8387,152.94,152.88,2.4201]
[1718192028740,8.21,152.89,152.87,2.4202]
[1718192030947,2.4198,152.91,152.88,2.4201]
[1718192031148,8.21,152.89,152.88,2.4201]
[1718192031448,2.4196,152.92,152.89,2.42]
[1718192031652,2.4196,152.92,152.89,2.4199]
[1718192031843,8.21,152.9,152.89,2.4199]
[1718192033657,8.21,152.9,152.88,2.4201]
[1718192034034,2.4196,152.92,152.88,2.4201]
[1718192034545,8.21,152.9,152.88,2.4201]
[1718192036156,8.21,152.9,152.87,2.4202]
[1718192037334,8.21,152.9,152.88,2.4201]
[1718192037533,2.4197,152.91,152.88,2.4201]
[1718192037534,2.4196,152.92,152.88,2.4201]
[1718192037734,8.21,152.9,152.89,2.42]
[1718192038054,8.21,152.9,152.87,4.8406]
[1718192038255,8.21,152.9,152.89,2.42]
[1718192040562,2.4194,152.93,152.9,2.4198]
[1718192040738,2.4194,152.93,152.89,2.4199]
[1718192040943,8.21,152.91,152.89,2.4199]
[1718192041471,8.21,152.9,152.84,7.2624]
[1718192041637,8.21,152.88,152.85,2.4205]
[1718192042072,10.6301,152.88,152.85,2.4205]
[1718192042371,8.21,152.88,152.85,2.4205]
[1718192042670,8.21,152.87,152.86,2.4204]
[1718192043457,8.21,152.87,152.84,12.1039]
[1718192043458,8.21,152.87,152.85,2.4206]
[1718192043674,8.21,152.87,152.81,25.1585]
[1718192043846,8.21,152.84,152.79,21.7937]
[1718192044047,8.21,152.83,152.78,4.8432]
[1718192044367,8.21,152.83,152.79,7.2647]
[1718192044660,8.21,152.83,152.82,2.421]
[1718192045865,2.4206,152.86,152.82,2.421]
[1718192046042,8.21,152.83,152.82,2.421]
[1718192047605,44.9412,152.88,152.83,2.4209]
[1718192047743,8.21,152.84,152.83,2.4209]
[1718192049071,8.21,152.84,152.82,2.421]
[1718192050070,8.21,152.84,152.83,2.4209]
[1718192050973,8.21,152.84,152.82,2.421]
[1718192051268,8.21,152.84,152.81,2.4212]
[1718192051483,8.21,152.83,152.81,2.4212]
[1718192053396,8.21,152.83,152.82,2.4211]
[1718192054489,8.21,152.83,152.81,2.4212]
[1718192054991,8.21,152.83,152.8,2.4213]
[1718192055170,8.21,152.82,152.8,2.4213]
[1718192055577,8.21,152.82,152.81,2.4213]
[1718192056594,2.4207,152.85,152.82,2.4211]
[1718192056787,8.21,152.83,152.82,2.4211]
[1718192058274,8.21,152.83,152.81,2.4212]
[1718192058613,2.4207,152.85,152.81,2.4212]
[1718192058932,8.21,152.83,152.81,2.4212]
[1718192062587,2.4209,152.84,152.79,4.8432]
[1718192062881,8.21,152.83,152.81,2.4212]
[1718192068126,2.4209,152.84,152.81,2.4212]
[1718192068127,8.21,152.82,152.81,2.4212]
[1718192068516,8.21,152.82,152.8,2.4214]
[1718192068831,2.421,152.83,152.8,2.4214]
[1718192068832,8.21,152.81,152.8,2.4214]
[1718192071523,2.4209,152.84,152.81,2.4212]
[1718192071823,8.21,152.82,152.81,2.4212]
[1718192072035,0.17,152.86,152.81,4.8425]
[1718192072211,8.21,152.83,152.82,2.421]
[1718192072925,22.2893,152.89,152.82,4.8422]
[1718192073107,8.21,152.84,152.83,2.4208]
[1718192073309,2.4203,152.87,152.84,2.4207]
[1718192073532,8.21,152.86,152.85,2.4206]
[1718192074105,8.21,152.86,152.84,2.4207]
[1718192074302,2.4203,152.87,152.84,2.4207]
[1718192074727,8.21,152.86,152.84,2.4207]
[1718192075522,8.21,152.85,152.83,2.4209]
[1718192075730,8.21,152.84,152.83,2.4209]
[1718192076641,2.4205,152.86,152.83,2.4209]
[1718192077509,2.4204,152.87,152.84,2.4208]
[1718192077712,8.21,152.85,152.83,2.4208]
[1718192078544,2.4203,152.87,152.84,2.4208]
[1718192078743,8.21,152.85,152.84,2.4208]
[1718192079038,2.4203,152.87,152.84,2.4208]
[1718192079259,8.21,152.85,152.84,2.4208]
[1718192080014,8.21,152.85,152.79,25.2307]
[1718192080239,8.21,152.82,152.81,2.4212]
[1718192080641,8.21,152.82,152.77,21.7966]
[1718192080828,8.21,152.81,152.8,2.4214]
[1718192082680,8.21,152.81,152.79,2.4215]
[1718192082976,8.21,152.8,152.79,2.4215]
[1718192085373,8.21,152.8,152.78,2.4216]
[1718192085576,8.21,152.79,152.78,2.4216]
[1718192087873,8.21,152.79,152.78,7.2651]
[1718192088665,0.17,152.85,152.81,2.4212]
[1718192088975,8.21,152.82,152.81,2.4212]
[1718192089275,8.21,152.82,152.8,2.4214]
[1718192089579,2.4208,152.84,152.81,2.4213]
[1718192089774,8.21,152.82,152.81,2.4213]
[1718192090081,8.21,152.82,152.8,2.4213]
[1718192090262,8.21,152.81,152.8,2.4213]
[1718192093787,2.4207,152.85,152.81,2.4212]
[1718192094092,8.21,152.82,152.81,2.4212]
[1718192094972,8.21,152.82,152.8,2.4213]
[1718192095169,8.21,152.81,152.8,2.4213]
[1718192096576,8.21,152.82,152.81,2.4213]
[1718192096884,8.21,152.82,152.8,2.4213]
[1718192097482,8.21,152.82,152.81,2.4213]
[1718192097785,8.21,152.83,152.81,2.4212]
[1718192098577,44.9412,152.88,152.8,12.1072]
[1718192098778,8.21,152.83,152.82,2.421]
[1718192098972,8.21,152.84,152.81,2.4212]
[1718192099276,10.6308,152.84,152.81,2.4212]
[1718192099676,8.21,152.84,152.81,2.4212]
[1718192100077,8.21,152.83,152.81,2.4212]
[1718192100280,8.21,152.83,152.82,2.4211]
[1718192100481,44.9411,152.88,152.81,4.8423]
[1718192100796,8.21,152.83,152.82,2.421]
[1718192101098,8.21,152.84,152.82,2.421]
[1718192102190,0.17,152.85,152.76,15.3655]
[1718192102378,10.6315,152.8,152.77,2.4218]
[1718192102585,8.21,152.78,152.75,491.7897]
[1718192102771,8.21,152.77,152.75,491.7897]
[1718192103086,8.21,152.77,152.76,2.4221]
[1718192103292,8.21,152.77,152.75,491.7897]
[1718192103593,8.21,152.77,152.76,2.4221]
[1718192104092,40.0258,152.84,152.75,489.3676]
[1718192104275,8.21,152.79,152.78,2.4217]
[1718192104593,2.4212,152.82,152.78,2.4217]
[1718192104791,8.21,152.79,152.78,2.4217]
[1718192105381,2.4212,152.82,152.78,2.4217]
[1718192105783,8.21,152.8,152.78,2.4217]
[1718192106885,8.21,152.79,152.77,2.4218]
[1718192107491,8.21,152.78,152.76,2.422]
[1718192107795,8.21,152.78,152.77,2.4219]
[1718192107983,8.21,152.78,152.76,2.422]
[1718192108390,8.21,152.78,152.75,491.7897]
[1718192108580,9.6849,152.82,152.75,489.3676]
[1718192108780,8.21,152.78,152.77,2.4218]
[1718192108998,8.21,152.78,152.76,2.422]
[1718192110079,8.21,152.78,152.75,489.3676]
[1718192110395,23.0793,152.84,152.75,489.3676]
[1718192110396,8.21,152.76,152.75,489.3676]
[1718192110980,8.21,152.76,152.75,491.7898]
[1718192112972,8.21,152.76,152.75,489.3676]
[1718192113683,2.4217,152.79,152.75,491.7897]
[1718192114700,2.4217,152.79,152.76,2.422]
[1718192115212,2.4217,152.79,152.75,491.7897]
[1718192115777,2.4217,152.78,152.75,491.7897]
[1718192115977,10.6321,152.76,152.75,489.3676]
[1718192119211,22.7426,152.76,152.75,489.3676]
[1718192119400,32.941,152.76,152.75,484.92646061]
[1718192121710,23.0826,152.76,152.75,484.92646061]
[1718192122592,15.4763,152.76,152.75,484.92646061]
[1718192123613,10.6321,152.76,152.75,484.92646061]
[1718192124396,15.4763,152.76,152.75,484.92646061]
[1718192124802,32.601,152.76,152.75,484.92646061]
[1718192124997,32.771,152.76,152.75,484.92646061]
[1718192125513,32.941,152.76,152.75,484.92646061]
[1718192125714,132.941,152.76,152.75,367.59646061]
[1718192126221,132.941,152.76,152.75,364.13346061]
[1718192126395,32.941,152.76,152.75,363.47946061]
[1718192126597,33.111,152.76,152.75,363.47946061]
[1718192127121,133.111,152.76,152.75,358.21546061]
[1718192127293,233.111,152.76,152.75,325.36346061]
[1718192127498,235.43753617,152.76,152.75,325.36346061]
[1718192127714,235.43753617,152.76,152.75,323.39846061]
[1718192128029,259.05463617,152.76,152.75,316.43346061]
[1718192128230,259.05463617,152.76,152.75,277.43446061]
[1718192128397,259.05463617,152.76,152.75,275.46917374]
[1718192128722,250.84463617,152.76,152.75,158.13917374]
[1718192129019,250.84463617,152.76,152.75,152.09388687]
[1718192129523,250.84463617,152.76,152.75,125.8216]
[1718192129901,259.05463617,152.76,152.75,103.85631313]
[1718192130118,283.68463617,152.76,152.75,103.85631313]
[1718192130303,290.34203617,152.76,152.75,90.27040426]
[1718192130503,290.34203617,152.76,152.75,85.00040426]
[1718192130702,300.34203617,152.76,152.75,54.76040426]
[1718192130902,300.34203617,152.76,152.75,52.79540426]
[1718192131099,307.13325319,152.76,152.75,19.41537026]
[1718192131326,307.13325319,152.76,152.64,2.4239]
[1718192131327,2.4235,152.67,152.64,2.4239]
[1718192131522,8.21,152.66,152.64,2.4239]
[1718192131823,8.21,152.66,152.62,12.1214]
[1718192131824,2.4239,152.65,152.62,2.4242]
[1718192132011,10.6339,152.65,152.62,2.4242]
[1718192132214,10.6339,152.65,152.61,23.6401]
[1718192132416,2.4239,152.65,152.61,23.6401]
[1718192132729,10.6338,152.65,152.62,2.4242]
[1718192132904,10.6338,152.65,152.61,21.2157]
[1718192133108,10.6338,152.65,152.62,2.4242]
[1718192133426,10.6337,152.66,152.63,2.4241]
[1718192133727,8.21,152.66,152.63,2.4241]
[1718192134037,2.4234,152.68,152.64,2.4238]
[1718192134207,2.4237,152.66,152.63,2.424]
[1718192134415,10.6336,152.67,152.63,2.4241]
[1718192134636,2.4237,152.66,152.63,2.4241]
[1718192134826,2.4236,152.67,152.61,41.5478]
[1718192135125,8.21,152.68,152.64,2.4239]
[1718192135328,2.4234,152.68,152.64,2.4239]
[1718192135505,10.6334,152.68,152.65,2.4238]
[1718192135925,10.6334,152.68,152.64,2.4239]
[1718192136129,8.21,152.65,152.61,15.1565]
[1718192136335,10.634,152.64,152.61,15.1565]
[1718192137120,10.634,152.64,152.61,17.5809]
[1718192137324,10.634,152.64,152.61,15.1565]
[1718192137536,2.4241,152.63,152.61,15.1565]
[1718192137833,10.6341,152.63,152.61,15.1565]
[1718192138620,10.634,152.64,152.61,15.1565]
[1718192139138,8.21,152.63,152.61,15.1565]
[1718192139443,10.6341,152.63,152.61,15.1565]
[1718192140029,100.0,152.64,152.5,16.6124]
[1718192140233,8.21,152.6,152.55,2.4253]
[1718192140535,2.4248,152.59,152.55,2.4253]
[1718192140738,2.4248,152.59,152.53,4.8514]
[1718192140739,10.6347,152.6,152.56,2.4252]
[1718192141441,10.6348,152.59,152.54,8.21]
[1718192141652,8.21,152.59,152.56,2.4252]
[1718192141944,10.6347,152.6,152.56,2.4252]
[1718192142246,2.4246,152.6,152.57,2.425]
[1718192142450,2.4248,152.59,152.55,19.0155]
[1718192143526,2.4245,152.61,152.55,29.651]
[1718192143726,2.4245,152.61,152.57,2.4249]
[1718192144152,2.4246,152.6,152.57,2.4249]
[1718192144449,2.4246,152.6,152.56,10.6351]
[1718192144823,2.4246,152.6,152.56,2.4251]
[1718192145353,2.4248,152.59,152.55,24.8003]
[1718192145536,2.4248,152.59,152.55,27.2256]
[1718192145936,8.21,152.6,152.55,19.0156]
[1718192146236,2.4248,152.59,152.55,19.0156]
[1718192146832,10.6348,152.59,152.55,19.0156]
[1718192147435,10.6348,152.59,152.55,16.5903]
[1718192147758,10.6348,152.59,152.55,19.0156]
[1718192148635,10.6348,152.59,152.56,2.4252]
[1718192150360,2.4252,152.57,152.55,16.5903]
[1718192150525,2.425,152.58,152.55,16.5903]
[1718192150730,10.6348,152.59,152.55,19.0157]
[1718192151351,2.4249,152.58,152.55,16.5903]
[1718192152258,2.4251,152.57,152.55,16.5903]
[1718192152632,8.21,152.58,152.55,16.5903]
[1718192153257,10.635,152.58,152.55,16.5903]
[1718192154737,2.4251,152.57,152.55,16.5903]
[1718192155230,10.635,152.58,152.55,16.5903]
[1718192156236,10.635,152.58,152.55,19.0156]
[1718192157561,8.21,152.58,152.55,19.0156]
[1718192158266,2.4247,152.6,152.56,2.4252]
[1718192158454,8.21,152.59,152.56,2.4252]
[1718192158842,10.6348,152.59,152.56,2.4252]
[1718192159263,10.6348,152.59,152.55,19.0156]
[1718192159761,2.4249,152.58,152.55,19.0156]
[1718192160059,0.34,152.63,152.55,19.0156]
[1718192160060,10.01918776,152.64,152.58,2.4248]
[1718192160277,12.1189,152.66,152.57,8.21]
[1718192160459,2.4241,152.63,152.6,2.4245]
[1718192160765,2.4243,152.62,152.59,2.4247]
[1718192161061,2.4243,152.62,152.58,2.4248]
[1718192161264,2.4245,152.61,152.58,2.4248]
[1718192161456,2.4246,152.6,152.57,2.425]
[1718192161661,2.4248,152.59,152.56,2.4251]
[1718192162044,2.4247,152.6,152.56,2.4251]
[1718192162244,2.4248,152.59,152.56,2.4251]
[1718192162566,2.4247,152.6,152.56,2.4251]
[1718192162863,10.6347,152.6,152.56,2.4251]
[1718192163039,10.6347,152.6,152.57,2.425]
[1718192163965,10.6347,152.6,152.56,2.4251]
[1718192164177,10.6347,152.6,152.55,16.5903]